bitfinex/quotes_SOLUSD_20251007
["timestamp","ask_amount","ask_price","bid_price","bid_amount"]
[1759864832650,32.68,221.49,221.47,4.51528423]
[1759864832853,33.35,221.49,221.47,4.51528423]
[1759864833058,8.53469318,221.48,221.45,15.39216723]
[1759864833359,32.68,221.49,221.46,0.67]
[1759864833866,7.86469318,221.54,221.47,8.53469318]
[1759864834084,3.2829313,221.53,221.51,10.87647521]
[1759864834379,27.26,221.54,221.53,10.87647521]
[1759864834672,32.68,221.54,221.53,11.54647521]
[1759864834867,0.5264,221.6,221.57,10.87647521]
[1759864835052,0.5264,221.6,221.57,18.74116839]
[1759864835254,18.6664,221.6,221.59,10.87647521]
[1759864836054,0.5264,221.6,221.59,10.87647521]
[1759864836276,32.68,221.61,221.59,10.87647521]
[1759864836969,8.53469318,221.63,221.59,10.87647521]
[1759864837174,33.33,221.62,221.6,4.51263537]
[1759864837551,41.19469318,221.62,221.6,4.51263537]
[1759864837873,32.66,221.62,221.6,4.51263537]
[1759864838055,27.39944294,221.78,221.61,11.54647521]
[1759864838056,7.86469318,221.66,221.61,11.54647521]
[1759864838374,32.64,221.65,221.61,19.41116839]
[1759864838571,32.64,221.64,221.61,19.41116839]
[1759864839158,32.64,221.64,221.63,10.87647521]
[1759864839675,41.16469318,221.64,221.63,10.87647521]
[1759864839883,33.3,221.64,221.63,10.87647521]
[1759864840055,41.16469318,221.64,221.63,10.87647521]
[1759864840257,40.50469318,221.64,221.63,10.87647521]
[1759864840954,32.64,221.64,221.63,10.87647521]
[1759864841150,32.62,221.64,221.63,4.51202454]
[1759864841673,7.86469318,221.65,221.63,4.51202454]
[1759864841975,32.6,221.65,221.64,10.87647521]
[1759864842181,41.12469318,221.65,221.63,4.51202454]
[1759864843279,41.12469318,221.65,221.63,10.87647521]
[1759864844173,3.313809,221.64,221.63,10.87647521]
[1759864845578,3.973809,221.64,221.63,15.38849975]
[1759864845882,11.83850218,221.64,221.63,15.38849975]
[1759864846079,3.313809,221.64,221.63,15.38849975]
[1759864846257,3.31880205,221.64,221.63,15.38849975]
[1759864847156,35.87880205,221.64,221.63,15.38849975]
[1759864849163,3.31880205,221.64,221.63,16.10849975]
[1759864849371,35.83880205,221.64,221.63,16.10849975]
[1759864850072,3.31880205,221.64,221.63,16.10849975]
[1759864850287,35.85880205,221.64,221.63,16.10849975]
[1759864850468,3.31880205,221.64,221.63,16.10849975]
[1759864850793,35.83880205,221.64,221.63,16.10849975]
[1759864851073,35.83880205,221.64,221.63,15.38849975]
[1759864852875,35.85386456,221.64,221.63,15.38849975]
[1759864853265,33.0464,221.64,221.63,15.38849975]
[1759864855178,0.5264,221.64,221.63,16.10849975]
[1759864855997,3.13545704,221.75,221.67,10.87647521]
[1759864856297,35.79428734,221.74,221.69,14.01193225]
[1759864856480,32.46,221.74,221.71,10.87647521]
[1759864857375,32.46,221.74,221.71,0.72]
[1759864857692,32.44,221.73,221.69,3.85545704]
[1759864857995,32.44,221.73,221.71,10.87647521]
[1759864860374,3.81545704,221.72,221.69,4.51080231]
[1759864860579,3.13545704,221.7,221.67,15.38752157]
[1759864860882,3.13545704,221.68,221.67,15.38752157]
[1759864861090,35.55545704,221.68,221.67,15.38752157]
[1759864862296,32.42,221.68,221.67,15.38752157]
[1759864863282,35.55545704,221.68,221.67,15.38752157]
[1759864863784,32.42,221.68,221.67,15.38752157]
[1759864868779,33.1,221.68,221.67,15.38752157]
[1759864869284,32.34,221.68,221.67,15.38752157]
[1759864869592,3.13545704,221.69,221.67,15.38752157]
[1759864869781,32.34,221.68,221.67,15.38752157]
[1759864869982,33.02,221.68,221.67,15.38752157]
[1759864871701,32.34,221.68,221.67,15.38752157]
[1759864872101,32.32,221.68,221.67,15.38752157]
[1759864872608,132.9,221.75,221.67,30.5210045]
[1759864872826,35.45545704,221.74,221.69,10.87647521]
[1759864873006,0.68,221.73,221.69,10.87647521]
[1759864873704,32.3,221.72,221.69,10.87647521]
[1759864873908,32.3,221.72,221.69,4.51080337]
[1759864874397,32.98,221.72,221.69,4.51080337]
[1759864874592,32.3,221.71,221.69,4.51080337]
[1759864874908,32.98,221.71,221.69,4.51080337]
[1759864875316,32.3,221.71,221.69,4.51080337]
[1759864876285,0.68,221.7,221.69,4.51080337]
[1759864877225,0.68,221.7,221.66,10.87647521]
[1759864877382,32.28,221.69,221.66,10.87647521]
[1759864878191,32.28,221.69,221.66,15.38788908]
[1759864878590,2.00520175,221.68,221.66,10.87647521]
[1759864878803,32.26,221.67,221.64,15.38829618]
[1759864879013,2.00520175,221.66,221.64,15.38829618]
[1759864879213,32.26,221.67,221.64,16.08829618]
[1759864879508,32.26,221.67,221.64,15.38829618]
[1759864879690,32.92,221.67,221.64,15.38829618]
[1759864879889,34.92520175,221.67,221.64,15.38829618]
[1759864880994,34.26520175,221.67,221.64,15.38829618]
[1759864881201,32.26,221.67,221.64,15.38829618]
[1759864883006,34.92520175,221.67,221.64,15.38829618]
[1759864884216,34.26520175,221.67,221.64,10.87647521]
[1759864884425,2.00520175,221.65,221.6,10.87647521]
[1759864884587,32.22,221.64,221.6,11.57647521]
[1759864885313,32.22,221.64,221.62,10.87647521]
[1759864885493,32.2,221.63,221.62,10.87647521]
[1759864886290,2.66520175,221.66,221.62,10.87647521]
[1759864886515,32.2,221.65,221.62,10.87647521]
[1759864886694,2.66520175,221.66,221.62,10.87647521]
[1759864886896,32.2,221.64,221.62,10.87647521]
[1759864887415,32.2,221.64,221.63,15.38849975]
[1759864887997,0.66,221.7,221.64,10.87647521]
[1759864888206,2.00520175,221.68,221.64,10.87647521]
[1759864888513,32.18,221.67,221.64,10.87647521]
[1759864889509,32.18,221.67,221.65,4.51161741]
[1759864889718,2.66520175,221.68,221.65,4.51161741]
[1759864889897,2.00520175,221.66,221.59,32.78163123]
[1759864890097,34.18520175,221.65,221.6,27.37069902]
[1759864890314,32.18,221.65,221.62,10.87647521]
[1759864890504,32.18,221.65,221.62,11.57647521]
[1759864890893,2.00520175,221.66,221.62,11.57647521]
[1759864891104,32.18,221.65,221.62,11.57647521]
[1759864891418,32.18,221.65,221.61,4.51224185]
[1759864891419,34.84520175,221.65,221.61,4.51224185]
[1759864891595,0.66,221.64,221.62,10.87647521]
[1759864892019,34.18520175,221.65,221.62,10.87647521]
[1759864892220,32.18,221.65,221.62,10.87647521]
[1759864892714,32.84,221.65,221.62,10.87647521]
[1759864893419,32.84,221.65,221.62,15.38852227]
[1759864893622,34.84520175,221.65,221.62,15.38852227]
[1759864894417,34.18520175,221.65,221.62,15.38852227]
[1759864894614,32.84,221.65,221.62,15.38852227]
[1759864894919,2.00520175,221.66,221.62,15.38852227]
[1759864895222,0.66,221.66,221.62,16.08852227]
[1759864895424,32.14,221.65,221.62,16.08852227]
[1759864895616,32.14,221.65,221.62,15.38852227]
[1759864895921,32.8,221.65,221.62,15.38852227]
[1759864896617,32.14,221.65,221.62,15.38852227]
[1759864897023,32.14,221.65,221.62,16.08852227]
[1759864897202,32.14,221.65,221.62,15.38852227]
[1759864897611,32.14,221.65,221.62,16.08852227]
[1759864897917,32.12,221.64,221.62,16.08852227]
[1759864898622,0.66,221.7,221.64,10.87647521]
[1759864898923,32.12,221.7,221.68,10.87647521]
[1759864899097,32.12,221.7,221.69,11.59647521]
[1759864899924,32.12,221.7,221.69,10.87647521]
[1759864900330,0.69,221.76,221.7,10.87647521]
[1759864900518,0.69,221.76,221.72,10.87647521]
[1759864900519,35.48806112,221.75,221.72,10.87647521]
[1759864900714,3.34806112,221.74,221.72,10.87647521]
[1759864900919,3.34806112,221.73,221.72,10.87647521]
[1759864901117,32.12,221.74,221.72,10.87647521]
[1759864901336,32.12,221.74,221.72,11.09647521]
[1759864901927,32.12,221.74,221.73,0.72]
[1759864902117,32.12,221.74,221.71,18.51158936]
[1759864903111,32.12,221.75,221.71,18.51158936]
[1759864903336,32.12,221.75,221.73,4.50998962]
[1759864904028,2.69520175,221.77,221.73,4.50998962]
[1759864904217,32.12,221.76,221.73,4.50998962]
[1759864904415,0.69,221.77,221.74,10.87647521]
[1759864904604,32.1,221.76,221.74,10.87647521]
[1759864904805,2.20520175,221.78,221.74,10.87647521]
[1759864905004,35.44852742,221.77,221.74,11.59647521]
[1759864905228,3.34852742,221.76,221.74,10.87647521]
[1759864905407,32.1,221.77,221.74,10.87647521]
[1759864905608,3.34772581,221.76,221.74,10.87647521]
[1759864905822,32.79,221.77,221.74,10.87647521]
[1759864906029,3.34710827,221.76,221.74,10.87647521]
[1759864906221,32.79,221.77,221.74,10.87647521]
[1759864906423,3.34649645,221.76,221.74,10.87647521]
[1759864906635,3.34649645,221.76,221.74,15.38612151]
[1759864907241,4.03649645,221.76,221.74,15.38612151]
[1759864907417,0.69,221.76,221.74,15.38612151]
[1759864909138,32.1,221.77,221.74,15.38612151]
[1759864909434,3.34551429,221.76,221.74,15.38612151]
[1759864910341,34.79520175,221.77,221.74,15.38612151]
[1759864910646,34.79520175,221.77,221.71,13.2811929]
[1759864910647,0.69,221.76,221.73,15.38646222]
[1759864910815,0.69,221.75,221.73,15.38646222]
[1759864911227,32.08,221.74,221.73,15.38646222]
[1759864911444,32.77,221.74,221.71,15.38671802]
[1759864911645,32.08,221.74,221.71,15.38671802]
[1759864911857,32.08,221.74,221.73,10.87647521]
[1759864912413,32.08,221.74,221.73,11.53647521]
[1759864912615,32.08,221.74,221.73,16.04646483]
[1759864912948,32.08,221.74,221.73,18.05166658]
[1759864913737,32.08,221.77,221.73,29.32664064]
[1759864914049,32.08,221.77,221.74,0.66]
[1759864914346,32.08,221.77,221.76,10.87647521]
[1759864915434,32.08,221.77,221.76,16.04585471]
[1759864916545,32.08,221.77,221.76,15.38585471]
[1759864916842,32.77,221.77,221.75,10.87647521]
[1759864917438,32.08,221.77,221.76,4.5093795]
[1759864917942,34.77520175,221.77,221.75,4.50957082]
[1759864918147,0.69,221.76,221.73,4.50979462]
[1759864918340,0.69,221.75,221.74,10.87647521]
[1759864918534,2.69520175,221.75,221.74,10.87647521]
[1759864918743,2.69520175,221.75,221.71,15.38687167]
[1759864919045,2.00520175,221.72,221.69,0.66]
[1759864919248,32.77,221.74,221.69,0.66]
[1759864919249,32.08,221.71,221.7,10.87647521]
[1759864919425,2.69520175,221.74,221.71,4.51039646]
[1759864919627,32.08,221.73,221.71,4.51039646]
[1759864920247,32.77,221.73,221.71,4.51039646]
[1759864920441,34.77520175,221.73,221.7,10.87647521]
[1759864920646,2.00520175,221.71,221.7,15.38702246]
[1759864920828,2.00520175,221.71,221.69,15.3872402]
[1759864921238,32.08,221.7,221.69,15.3872402]
[1759864921542,34.08520175,221.7,221.69,15.3872402]
[1759864921850,32.08,221.7,221.69,10.87647521]
[1759864924353,32.08,221.7,221.69,15.38727858]
[1759864924530,34.77520175,221.7,221.66,20.8]
[1759864924733,2.00520175,221.69,221.67,10.87647521]
[1759864925037,2.69520175,221.69,221.67,10.87647521]
[1759864925453,0.69,221.71,221.66,10.87647521]
[1759864925762,32.08,221.7,221.66,10.87647521]
[1759864926062,32.08,221.7,221.66,11.53647521]
[1759864926346,32.08,221.7,221.67,4.51121035]
[1759864926549,2.69520175,221.73,221.69,10.87647521]
[1759864926751,32.08,221.72,221.69,10.87647521]
[1759864926935,32.77,221.72,221.69,10.87647521]
[1759864927442,32.08,221.72,221.67,6.5164121]
[1759864927642,34.08520175,221.72,221.69,10.87647521]
[1759864927952,34.77520175,221.72,221.69,15.38722824]
[1759864928540,2.69520175,221.71,221.66,0.66]
[1759864928747,2.69520175,221.7,221.66,10.87647521]
[1759864928947,2.00520175,221.71,221.66,11.53647521]
[1759864929141,32.77,221.72,221.66,11.53647521]
[1759864929142,32.77,221.72,221.67,0.66]
[1759864929459,34.77520175,221.72,221.67,0.66]
[1759864929652,2.69520175,221.72,221.67,0.66]
[1759864929837,32.08,221.71,221.67,0.66]
[1759864930339,34.77520175,221.71,221.69,10.87647521]
[1759864931458,32.77,221.71,221.69,10.87647521]
[1759864933453,0.69,221.7,221.67,10.87647521]
[1759864933755,32.08,221.71,221.68,0.66]
[1759864933960,32.08,221.71,221.67,11.53647521]
[1759864934128,32.77,221.71,221.67,11.53647521]
[1759864934755,5.19979953,221.74,221.67,10.87647521]
[1759864935058,3.13385447,221.72,221.68,4.51100685]
[1759864935361,3.82385447,221.72,221.69,10.87647521]
[1759864935657,3.13385447,221.72,221.69,10.87647521]
[1759864935962,0.69,221.71,221.69,10.87647521]
[1759864936146,32.08,221.7,221.69,10.87647521]
[1759864937060,32.08,221.7,221.67,4.51120885]
[1759864937263,32.08,221.7,221.67,5.23120885]
[1759864938552,32.76,221.7,221.67,4.51120885]
[1759864938748,32.08,221.7,221.67,4.51120885]
[1759864938940,3.13385447,221.68,221.64,10.87647521]
[1759864939141,35.87385447,221.67,221.64,10.87647521]
[1759864939347,35.87385447,221.66,221.64,10.87647521]
[1759864940252,3.13385447,221.65,221.64,10.87647521]
[1759864940648,3.13385447,221.65,221.64,15.38829618]
[1759864940844,3.81385447,221.65,221.63,10.87647521]
[1759864941050,32.06,221.66,221.63,10.87647521]
[1759864941051,3.81385447,221.64,221.63,10.87647521]
[1759864941572,3.13385447,221.65,221.63,10.87647521]
[1759864941862,3.81385447,221.64,221.62,4.51215635]
[1759864942062,32.06,221.63,221.62,15.38863156]
[1759864943454,0.68,221.63,221.62,4.51215635]
[1759864943646,32.74,221.63,221.62,4.51215635]
[1759864944259,32.06,221.63,221.62,4.51215635]
[1759864944970,32.06,221.63,221.6,11.59647521]
[1759864944971,32.06,221.63,221.61,4.51243174]
[1759864945162,32.06,221.63,221.61,5.23243174]
[1759864945668,32.06,221.63,221.61,4.51243174]
[1759864946248,0.68,221.66,221.61,5.23243174]
[1759864946463,35.87385447,221.65,221.61,5.23243174]
[1759864946660,0.68,221.64,221.61,4.51243174]
[1759864946845,32.06,221.63,221.61,4.51243174]
[1759864947046,32.06,221.62,221.61,15.38890695]
[1759864948578,32.06,221.62,221.61,4.51243174]
[1759864949059,0.68,221.65,221.62,10.87647521]
[1759864949261,3.13385447,221.65,221.64,4.51182097]
[1759864949465,32.06,221.65,221.64,4.51182097]
[1759864949658,32.74,221.65,221.64,4.51182097]
[1759864949858,32.74,221.65,221.64,15.38829618]
[1759864949859,32.06,221.65,221.64,15.38829618]
[1759864950267,0.68,221.68,221.64,15.38829618]
[1759864950472,35.87385447,221.67,221.64,15.38829618]
[1759864950674,3.13385447,221.66,221.64,15.38829618]
[1759864950866,3.81385447,221.65,221.63,4.51198752]
[1759864951067,35.87385447,221.64,221.63,4.51198752]
[1759864951276,35.87385447,221.64,221.6,22.15771801]
[1759864951277,35.87385447,221.64,221.61,15.38890695]
[1759864951485,3.13385447,221.63,221.61,15.38890695]
[1759864951780,3.13385447,221.63,221.61,16.10890695]
[1759864951976,3.13385447,221.63,221.61,15.38890695]
[1759864952165,35.19385447,221.64,221.61,16.10890695]
[1759864952470,3.13385447,221.64,221.61,16.10890695]
[1759864952681,32.06,221.63,221.61,16.10890695]
[1759864953260,0.2718,221.63,221.61,16.10890695]
[1759864953476,32.3318,221.63,221.61,16.10890695]
[1759864953854,32.3318,221.63,221.62,4.51222813]
[1759864955489,32.3318,221.63,221.6,4.51246246]
[1759864955490,36.14565447,221.63,221.6,4.51246246]
[1759864955781,35.46565447,221.63,221.6,4.51246246]
[1759864955957,36.14565447,221.63,221.6,4.51246246]
[1759864956153,3.13385447,221.61,221.56,10.87647521]
[1759864956476,32.3318,221.63,221.56,15.38992529]
[1759864956477,35.87385447,221.6,221.56,15.38992529]
[1759864956661,0.2718,221.63,221.56,15.38992529]
[1759864956662,35.87385447,221.59,221.56,15.38992529]
[1759864956868,0.68,221.58,221.56,15.38992529]
[1759864957090,0.68,221.57,221.56,15.38992529]
[1759864957858,35.19385447,221.59,221.56,15.38992529]
[1759864958058,0.68,221.58,221.56,15.38992529]
[1759864958471,0.68,221.57,221.56,15.38992529]
[1759864958767,32.06,221.57,221.56,15.38992529]
[1759864959871,0.71,221.58,221.56,15.38992529]
[1759864960075,32.06,221.57,221.56,15.38992529]
[1759864960378,35.90385447,221.57,221.51,4.51444877]
[1759864960690,3.13385447,221.54,221.52,10.87647521]
[1759864960999,32.06,221.53,221.52,10.87647521]
[1759864961785,0.71,221.59,221.52,14.70032968]
[1759864961986,35.19385447,221.58,221.54,10.87647521]
[1759864962166,35.19385447,221.58,221.54,11.56647521]
[1759864962365,35.90385447,221.58,221.54,11.56647521]
[1759864962575,32.77,221.58,221.54,11.56647521]
[1759864962769,35.90385447,221.58,221.54,11.56647521]
[1759864963185,35.90385447,221.58,221.55,4.5136538]
[1759864964095,3.13385447,221.57,221.55,4.5136538]
[1759864965394,32.06,221.56,221.55,15.39012901]
[1759864966378,35.19385447,221.56,221.5,11.28665491]
[1759864966593,3.13385447,221.54,221.51,10.87647521]
[1759864966779,35.19385447,221.53,221.51,10.87647521]
[1759864967094,32.06,221.52,221.51,10.87647521]
[1759864967596,32.06,221.52,221.51,15.39094408]
[1759864967768,35.19385447,221.52,221.51,15.39094408]
[1759864968169,32.06,221.52,221.51,16.08094408]
[1759864968394,35.19385447,221.52,221.51,15.39094408]
[1759864973195,35.19385447,221.52,221.51,16.08094408]
[1759864974297,35.19385447,221.52,221.51,15.39094408]
[1759864976103,35.46565447,221.52,221.51,15.39094408]
[1759864976500,0.2718,221.52,221.51,16.08094408]
[1759864978083,35.46565447,221.52,221.51,15.39094408]
[1759864978899,32.3318,221.52,221.51,16.08094408]
[1759864979579,0.2718,221.52,221.51,15.39094408]
[1759864979782,35.46565447,221.52,221.51,15.39094408]
[1759864982397,36.16565447,221.52,221.51,15.39094408]
[1759864982706,36.16565447,221.52,221.51,4.51446887]
[1759864984685,36.16565447,221.52,221.5,4.51463288]
[1759864984886,3.13385447,221.51,221.5,10.87647521]
[1759864985391,3.13385447,221.51,221.49,4.51487651]
[1759864985617,35.19385447,221.5,221.49,15.39135172]
[1759864985928,32.06,221.5,221.49,15.39135172]
[1759864987005,35.19385447,221.5,221.49,15.39135172]
[1759864987318,32.06,221.5,221.49,15.39135172]
[1759864988297,32.06,221.5,221.49,16.08135172]
[1759864988616,132.9,221.65,221.5,10.87647521]
[1759864988819,3.83385447,221.61,221.54,14.01032968]
[1759864988993,32.06,221.6,221.55,3.82385447]
[1759864989194,3.83385447,221.59,221.57,26.67283752]
[1759864989492,32.06,221.58,221.57,26.67283752]
[1759864990002,32.06,221.58,221.57,27.36283752]
[1759864991321,32.06,221.6,221.57,27.36283752]
[1759864991621,0.7,221.63,221.57,26.67283752]
[1759864991814,35.19385447,221.62,221.57,27.36283752]
[1759864992118,35.19385447,221.62,221.59,10.87647521]
[1759864992312,0.7,221.66,221.61,10.87647521]
[1759864992501,32.06,221.65,221.62,0.69]
[1759864992703,32.06,221.67,221.63,14.01032968]
[1759864992943,3.13385447,221.7,221.65,10.87647521]
[1759864993109,32.06,221.69,221.65,10.87647521]
[1759864993403,32.06,221.69,221.67,10.87647521]
[1759864994422,32.06,221.69,221.68,15.38748206]
[1759864995706,34.06593278,221.69,221.68,15.38748206]
[1759864995903,32.06,221.69,221.68,15.38748206]
[1759864997833,32.06,221.69,221.68,16.05748206]
[1759864998008,0.2718,221.69,221.68,16.05748206]
[1759865001319,1e-08,221.69,221.68,18.06341484]
[1759865001632,1e-08,221.69,221.68,31.60651575]
[1759865003808,1e-08,221.69,221.68,63.62651575]
[1759865006139,1e-08,221.69,221.68,31.60651575]
[1759865006436,1e-08,221.69,221.68,63.62651575]
[1759865010045,1e-08,221.69,221.68,61.62058297]
[1759865010244,1e-08,221.69,221.68,63.62651575]
[1759865010543,0.2,221.78,221.72,31.67647521]
[1759865010723,0.2,221.78,221.77,12.88240799]
[1759865010929,0.2,221.78,221.77,10.87647521]
[1759865011539,0.2,221.78,221.77,15.38565138]
[1759865011744,0.2,221.78,221.77,17.39158416]
[1759865011953,0.88,221.78,221.77,15.38565138]
[1759865014130,0.2,221.78,221.77,17.39158416]
[1759865016253,0.2,221.78,221.77,14.88565138]
[1759865024741,0.92,221.78,221.77,14.88565138]
[1759865025449,0.2,221.78,221.77,14.88565138]
[1759865026068,0.2,221.78,221.77,17.57158416]
[1759865026567,0.2,221.78,221.77,16.89158416]
[1759865027459,0.2,221.78,221.77,14.88565138]
[1759865027650,0.91,221.78,221.77,14.88565138]
[1759865029166,0.91,221.78,221.72,56.53666807]
[1759865029167,2.91593278,221.78,221.72,11.27529326]
[1759865029346,2.00593278,221.76,221.74,10.87647521]
[1759865029548,2.71593278,221.75,221.74,10.87647521]
[1759865030362,2.71593278,221.75,221.74,4.50978623]
[1759865030660,0.2,221.78,221.75,10.87647521]
[1759865030862,0.71,221.77,221.75,10.87647521]
[1759865031043,0.71,221.76,221.75,10.87647521]
[1759865031838,0.71,221.76,221.75,15.38605807]
[1759865035168,2.00593278,221.77,221.75,15.38605807]
[1759865035476,0.71,221.77,221.75,15.38605807]
[1759865035649,2.20593278,221.78,221.75,15.38605807]
[1759865035845,0.2,221.78,221.75,15.38605807]
[1759865036059,0.91,221.78,221.77,20.8]
[1759865036350,4.25246038,221.78,221.77,20.8]
[1759865036543,0.2,221.78,221.77,32.35647521]
[1759865037349,0.2,221.78,221.77,36.86565138]
[1759865037754,0.2,221.78,221.77,36.18565138]
[1759865038148,0.2,221.78,221.77,36.86565138]
[1759865039073,0.2,221.78,221.77,38.87158416]
[1759865040350,0.2,221.78,221.77,36.18565138]
[1759865040550,0.2,221.78,221.77,39.19740814]
[1759865040749,0.2,221.78,221.77,36.86565138]
[1759865040970,0.2,221.78,221.77,36.18565138]
[1759865041274,0.2,221.78,221.77,36.86565138]
[1759865043864,0.91,221.78,221.77,10.87647521]
[1759865044175,6.26797074,221.78,221.76,4.50919736]
[1759865044376,0.71,221.77,221.76,15.38567257]
[1759865044962,2.71593278,221.77,221.74,4.50975935]
[1759865045169,2.00593278,221.75,221.74,4.50975935]
[1759865045375,0.71,221.75,221.74,4.50975935]
[1759865049988,2.71593278,221.77,221.74,4.50975935]
[1759865050171,0.71,221.76,221.74,4.50975935]
[1759865051282,2.20593278,221.78,221.74,5.18975935]
[1759865051786,2.91593278,221.78,221.74,5.18975935]
[1759865051981,0.2,221.78,221.77,10.87647521]
[1759865053875,0.2,221.78,221.77,15.38565138]
[1759865055079,0.2,221.78,221.77,16.06565138]
[1759865055497,0.2,221.78,221.77,15.38565138]
[1759865061390,0.2,221.78,221.77,16.05565138]
[1759865061595,0.2,221.78,221.77,15.38565138]
[1759865065387,0.2,221.78,221.77,19.18677248]
[1759865066674,0.2,221.78,221.77,15.38565138]
[1759865067768,0.86,221.78,221.77,15.38565138]
[1759865068086,0.2,221.78,221.77,15.38565138]
[1759865069375,0.2,221.78,221.77,16.05565138]
[1759865069583,0.2,221.78,221.77,19.18677248]
[1759865071401,0.2,221.78,221.77,15.38565138]
[1759865077907,0.86,221.78,221.76,4.50934926]
[1759865078104,0.2,221.78,221.77,11.54647521]
[1759865078404,0.2,221.78,221.77,14.67759631]
[1759865079508,4.0511211,221.92,221.85,10.87647521]
[1759865079690,3.94345324,221.92,221.86,3.1311211]
[1759865079895,0.92,221.92,221.86,14.68759631]
[1759865080502,0.92,221.92,221.86,11.55647521]
[1759865080706,0.92,221.92,221.86,14.68759631]
[1759865080892,0.92,221.92,221.86,16.49195835]
[1759865081402,0.72,221.89,221.86,15.38382218]
[1759865081611,4.0511211,221.87,221.84,20.8]
[1759865081791,3.8511211,221.86,221.85,10.87647521]
[1759865082109,3.8511211,221.86,221.83,10.87647521]
[1759865082289,3.1311211,221.85,221.83,10.87647521]
[1759865082490,0.2,221.87,221.86,31.67647521]
[1759865082713,0.2,221.87,221.86,34.80759631]
[1759865082899,0.2,221.87,221.86,35.48759631]
[1759865083414,0.2,221.87,221.86,39.99494328]
[1759865083603,0.2,221.87,221.86,36.86382218]
[1759865083804,0.2,221.87,221.86,39.99494328]
[1759865084115,0.2,221.87,221.86,36.86382218]
[1759865084291,0.2,221.87,221.86,36.18382218]
[1759865086625,0.86,221.87,221.82,13.32736193]
[1759865086800,3.3311211,221.87,221.85,10.87647521]
[1759865087121,0.66,221.86,221.85,10.87647521]
[1759865087345,0.4727,221.87,221.85,10.87647521]
[1759865087635,0.4727,221.87,221.86,4.50734697]
[1759865088630,0.4727,221.87,221.86,8.31846807]
[1759865089996,0.4727,221.87,221.86,4.50734697]
[1759865090406,0.4727,221.87,221.85,15.38399663]
[1759865092918,3.7911211,221.86,221.83,4.50785635]
[1759865093123,0.66,221.85,221.84,31.67647521]
[1759865093716,3.1311211,221.86,221.84,31.67647521]
[1759865094928,3.6038211,221.87,221.84,36.18412996]
[1759865095217,4.2638211,221.87,221.84,36.18412996]
[1759865095624,3.6038211,221.87,221.85,0.68]
[1759865095925,3.6038211,221.87,221.84,36.18412996]
[1759865096515,3.6038211,221.87,221.84,36.86412996]
[1759865097424,3.6038211,221.87,221.84,36.86412863]
[1759865099029,4.2638211,221.87,221.84,36.18412863]
[1759865099830,36.1838211,221.87,221.84,36.18412863]
[1759865100325,0.66,221.86,221.84,10.87647521]
[1759865100554,3.7911211,221.85,221.8,10.87647521]
[1759865100702,0.66,221.84,221.77,10.87647521]
[1759865100904,3.1311211,221.8,221.77,10.87647521]
[1759865101129,3.1311211,221.8,221.76,31.67647521]
[1759865101315,3.1311211,221.79,221.76,10.87647521]
[1759865101522,3.1311211,221.77,221.72,11.55647521]
[1759865101827,3.1311211,221.76,221.72,5.19002928]
[1759865102027,3.1311211,221.76,221.74,10.87647521]
[1759865102935,3.1311211,221.76,221.72,15.38650449]
[1759865103122,3.1311211,221.76,221.74,15.38605868]
[1759865103440,0.66,221.78,221.74,10.87647521]
[1759865103641,31.9,221.77,221.74,15.38624074]
[1759865103830,35.0311211,221.77,221.74,15.38624074]
[1759865105520,3.1311211,221.75,221.73,4.50996866]
[1759865105722,3.1311211,221.75,221.73,10.87647521]
[1759865107316,3.1311211,221.75,221.73,15.3864303]
[1759865108950,4.0638211,221.75,221.73,10.87647521]
[1759865109120,35.9838211,221.75,221.73,10.87647521]
[1759865110243,3.7911211,221.74,221.73,10.87647521]
[1759865111325,3.7911211,221.74,221.72,10.87647521]
[1759865112424,3.1311211,221.74,221.72,10.87647521]
[1759865112623,3.1311211,221.73,221.7,10.87647521]
[1759865112950,3.1311211,221.71,221.67,4.51107996]
[1759865113149,3.1311211,221.71,221.68,10.87647521]
[1759865113150,3.1311211,221.7,221.68,10.87647521]
[1759865113331,3.1311211,221.7,221.68,16.06735415]
[1759865114158,35.0511211,221.71,221.68,11.55647521]
[1759865114353,31.92,221.71,221.69,3.8111211]
[1759865114555,31.92,221.71,221.7,0.68]